Workbook

Sheet 数据字典出现单位
A2: 长度 | B2: nm | C2: μm | D2: mm | E2: m | F2: km | G2: 英寸
A3: 时间 | B3: μs | C3: ms | D3: s | E3: min | F3: h | G3: 天 | H3: 年
A4: 质量 | B4: g | C4: kg | D4: t
A5: 温度 | B5: mK | C5: K | D5: ℃
A6: 电流 | B6: mA | C6: A
A7: 光强度 | B7: cd
A8: 物质的量 | B8: mol
A9: 平面角度 | B9: mrad | C9: rad | D9: °
A10: 立体角度 | B10: Sr
A11: 百分比 | B11: % | C11: %RH | D11: %FS
A12: 数量 | B12: 个 | C12: 台 | D12: 辆 | E12: 路 | F12: 相 | G12: 段 | H12: 条 | I12: 根 | J12: 阶 | K12: 站 | L12: 级 | M12: 组 | N12: 车次 | O12: 层 | P12: 户 | Q12: 支 | R12: 档 | S12: 次 | T12: 人 | U12: 人次
A13: 货币 | B13: 元
A14: 存储容量 | B14: bit | C14: MB | D14: GB | E14: TB
A15: 面积 | B15: mm2 | C15: m2
A16: 体积 | B16: m3 | C16: L
A17: 速度 | B17: mm/s | C17: m/s
A18: 加速度 | B18: m/s2 | C18: 重力加速度g
A19: 密度 | B19: kg/m3
A20: 力 | B20: N
A21: 压强 | B21: Pa | C21: kPa | D21: MPa
A22: 电压 | B22: mV | C22: V | D22: kV
A23: 功率 | B23: W | C23: kW | D23: kVar | E23: kVA | F23: dBm
A24: 能量 | B24: kWh | C24: kVarh | D24: kVAh
A25: 电阻 | B25: Ω | C25: kΩ | D25: MΩ
A26: 电容 | B26: pF
A27: 光通量 | B27: lm
A28: 照度 | B28: lux
A29: 频率 | B29: Hz | C29: kHz | D29: MHz | E29: GHz | F29: 次/h | G29: 次/天 | H29: rpm
A30: 电量 | B30: mAh | C30: Ah
A31: 浊度 | B31: NTU
A32: 声强 | B32: dB(A)
A33: 角速度 | B33: °/s
A34: 1/长度 | B34: 1/m
A35: 时间/时间 | B35: s/天
A36: 质量/时间 | B36: kg/5min | C36: g/h | D36: kg/h | E36: t/h
A37: 质量/质量 | B37: g/kg.dra
A38: 质量/体积 | B38: mg/L | C38: mg/m3
A39: 质量/面积 | B39: mg/m2 | C39: t/m2
A40: 质量/(时间*面积) | B40: t/(hm2)
A41: 质量/(时间*面积*压强） | B41: g/(hm2Pa)
A42: 温度/时间 | B42: ℃/min
A43: 电流2*时间 | B43: A2s
A44: 光强度/面积 | B44: cd/m2
A45: 物质的量/时间 | B45: mol/h
A46: 物质的量/体积 | B46: mol/L
A47: 百分比/时间 | B47: %FS/年
A48: 百分比/温度 | B48: %/℃ | C48: %RH/℃
A49: 数量/时间 | B49: 人次/min | C49: 人次/5min | D49: 车次/h | E49: 帧/s
A50: 数量/面积 | B50: 个/m2
A51: 货币/质量 | B51: 元/t
A52: 货币/体积 | B52: 元/L | C52: 元/m3
A53: 货币/能量 | B53: 元/kWh
A54: 货币/面积 | B54: 元/m2
A55: 存储容量/时间 | B55: MB/s | C55: GB/s | D55: Mpps
A56: 体积/时间 | B56: L/s | C56: mL/min | D56: L/h | E56: m3/h | F56: L/天 | G56: m3/天
A57: 体积/质量 | B57: m3/kg
A58: 体积/体积 | B58: mL/m3 | C58: ppm
A59: 体积/能量 | B59: L/kWh
A60: 体积/面积 | B60: L/m2
A61: 体积/(时间*数量） | B61: m3/(h人)
A62: 体积/(时间*面积） | B62: m3/(hm2)
A63: 声强/长度 | B63: dB(A)/km
A64: 力*长度 | B64: Nm
A65: 压强/长度 | B65: Pa/m
A66: 电压/长度 | B66: kV/mm
A67: 电压/时间 | B67: V/μs
A68: 功率/长度 | B68: W/m
A69: 功率/温度 | B69: mW/℃
A70: 功率/面积 | B70: W/m2 | C70: kW/m2
A71: 功率/(长度*温度) | B71: W/(mK)
A72: 功率/(面积*温度) | B72: W/(m2K)
A73: 能量/质量 | B73: kJ/kg.dra
A74: 能量/面积 | B74: kJ/m2
A75: 电阻*长度 | B75: Ωm
A76: 电阻/长度 | B76: Ω/m
A77: 电容/长度 | B77: nF/m
A78: 增益 | B78: dBi

Sheet 单位换算
A1: 单位 | B1: 标准/导出单位 | C1: 名称 | D1: 符号 | E1: 换算系数 | F1: 备注 | G1: 出现的前缀单位 | H1: 出现的计算单位 | I1: 出现的其他写法
A2: 长度 | B2: m | C2: 米 | D2: m | E2: 1 | F2: 可加前缀p,n,μ,m,c,d,k | G2: nm,μm,mm,km
C3: 毫 | E3: 30000
C4: 厘 | E4: 3000
C5: 分 | E5: 300
C6: 寸 | E6: 30
C7: 尺 | E7: 3
C8: 丈 | E8: 0.3
C9: 里 | E9: 0.002
C10: 公里 | E10: 0.001
C11: 英寸 | D11: in | E11: 39.3700787
C12: 英尺 | D12: ft | E12: 3.2808399
C13: 码 | D13: yd | E13: 1.0936133
C14: 英里 | D14: mi | E14: =1/1609.344 -> 0.0006213711922
C15: 海里 | D15: nmi | E15: =1/1852 -> 0.0005399568035
C16: 英寻 | D16: fm | E16: =1/1.8288 -> 0.5468066492
C17: 弗隆 | D17: fur | E17: =1/201.168 -> 0.004970969538
C18: 光年 | D18: ly | E18: =1/(9.460730472581*10^15) -> 1.057000834e-16
C19: 天文单位 | D19: AU | E19: =1/(1.496*10^11) -> 6.684491979e-12
A20: 时间 | B20: s | C20: 秒 | D20: s | E20: 1 | F20: 可加前缀p,n,μ,m | G20: μs,ms
C21: 分 | D21: min | E21: =1/60 -> 0.01666666667
C22: 时 | D22: h | E22: =1/60/60 -> 0.0002777777778
C23: 天 | D23: d | E23: =1/60/60/24 -> 1.157407407e-05
C24: 周 | D24: week | E24: =1/60/60/24/7 -> 1.653439153e-06
C25: 年 | D25: yr | E25: =1/60/60/24/365 -> 3.170979198e-08
A26: 质量 | B26: kg | C26: 千克 | D26: kg | E26: 1
C27: 克 | D27: g | E27: 1000 | F27: 可加前缀p,n,μ,m
C28: 吨 | D28: t | E28: 0.001
C29: 分 | E29: 500000
C30: 克拉 | D30: ct | E30: 5000
C31: 钱 | E31: 200
C32: 两 | E32: 20
C33: 斤 | E33: 2
C34: 公斤 | E34: 1 | F34: 等于1kg
C35: 担 | E35: 0.02
C36: 公担 | D36: q | E36: 0.01
C37: 格令 | D37: gr | E37: 15432.35835
C38: 盎司 | D38: oz | E38: 35.2739619
C39: 磅 | D39: lb | E39: 2.2046226
C40: 短吨 | D40: st | E40: =1/907.18474 -> 0.001102311311
C41: 长吨 | D41: lt | E41: =1/1016.0469088 -> 0.0009842065276
C42: 英担 | E42: =1/50.8023454 -> 0.01968413057
C43: 美担 | E43: =1/45.359237 -> 0.02204622622
C44: 英石 | D44: st | E44: =1/6.3502932 -> 0.1574730439
C45: 打兰 | D45: dr | E45: 564.3833912
A46: 温度 | B46: K | C46: 开尔文 | D46: K | E46: 1 | F46: 可加前缀m | G46: mK
C47: 摄氏度 | D47: ℃ | E47: ℃=K-273.5 | F47: 换算方法不同
C48: 华氏度 | D48: ℉ | E48: ℉=K×1.8-459.67 | F48: 换算方法不同
C49: 列氏度 | D49: °Re | E49: °Re=(K-273.15)×0.8 | F49: 换算方法不同
C50: 兰氏度 | D50: °R | E50: °R=K×1.8 | F50: 换算方法不同
A51: 电流 | B51: A | C51: 安培 | D51: A | E51: 1 | F51: 可加前缀p,n,μ,m,k | G51: mA
A52: 发光强度 | B52: cd | C52: 坎德拉 | D52: cd | E52: 1
A53: 物质的量 | B53: mol | C53: 摩尔 | D53: mol | E53: 1 | F53: 可加前缀p,n,μ,m,k
A54: 平面角 | B54: 1(rad) | C54: 弧度 | D54: rad | E54: 1 | F54: 可加前缀m | G54: mrad
C55: 秒 | D55: ″ | E55: =1/3.1415926/2*360*60*60 -> 206264.8098
C56: 分 | D56: ′ | E56: =1/3.1415926/2*360*60 -> 3437.746829
C57: 度 | D57: ° | E57: =1/3.1415926/2*360 -> 57.29578049
C58: 圆周 | E58: =1/3.1415926/2 -> 0.1591549458
C59: 直角 | E59: =1/3.1415926*2 -> 0.6366197832
C60: 百分度 | D60: gon | E60: =1/3.1415926*2*100 -> 63.66197832
A61: 立体角 | B61: 1(Sr) | C61: 球面度 | D61: Sr | E61: 1
A63: 数量 | B63: 1 | C63: 个 | D63: 个 | E63: 1 | F63: 具体情况写法不同 | I63: 台，辆，路，相，段，条，根，阶，站，级，组，层，户，支，档，次，车次，人，人次
C64: 百分之 | D64: % | E64: 100 | F64: 具体情况写法不同 | I64: FS%，RH%，LEL%
C65: 百万分之 | D65: ppm | E65: =10^6 -> 1000000 | F65: 用于气体、溶液浓度，百分比等
C66: 十亿分之 | D66: ppb | E66: =10^9 -> 1000000000 | F66: 用于气体、溶液浓度，百分比等
C67: 万亿分之 | D67: ppt | E67: =10^12 -> 1000000000000 | F67: 用于气体、溶液浓度，百分比等
C68: 分贝 | D68: dB | E68: dB=10×lgX | F68: 换算方法不同；具体情况写法不同；用于声强、功率增益等 | I68: dB(A)；dBi；dBd
A69: 货币 | B69: 1(元) | C69: 元 | E69: 1 | F69: 未考虑外币
C70: 分 | E70: 100
C71: 角 | E71: 10
A72: 存储容量 | B72: 1(bit) | C72: 比特 | D72: bit | E72: 1 | F72: 前缀意义不同
C73: 字节 | D73: B | E73: =1/8 -> 0.125 | F73: 也写作Bytes
C74: 千字节 | D74: kB | E74: =1/8/1024 -> 0.0001220703125
C75: 兆字节 | D75: MB | E75: =1/8/1024/1024 -> 1.192092896e-07
C76: 千兆字节 | D76: GB | E76: =1/8/1024/1024/1024 -> 1.164153218e-10
C77: 太字节 | D77: TB | E77: =1/8/1024/1024/1024/1024 -> 1.136868377e-13
C78: 拍字节 | D78: PB | E78: =1/8/1024/1024/1024/1024/1024 -> 1.110223025e-16
C79: 艾字节 | D79: EB | E79: =1/8/1024/1024/1024/1024/1024/1024 -> 1.084202172e-19
A80: 面积 | B80: m2 | C80: 平方米 | D80: m2 | E80: 1
C81: 平方（长度） | D81: *2或sq.* | E81: k2 | F81: 基本单位计算 | H81: mm2
C82: 公顷 | D82: ha | E82: 0.0001
C83: 亩 | E83: 0.0015
C84: 公亩 | D84: are | E84: 0.01
C85: 英亩 | D85: acre | E85: =1/4046.8564224 -> 0.0002471053815
C86: 平方竿 | D86: sq.rd | E86: =1/25.2928526 -> 0.0395368611
C87: 顷 | E87: 1.5e-05
C88: 分 | E88: 0.015
A89: 体积 | B89: m3 | C89: 立方米 | D89: m3
C90: 立方（长度） | D90: *3或cu.* | E90: k3 | F90: 基本单位计算
C91: 升 | D91: L | E91: 1000 | F91: 可加前缀μ,m,c,d；等于1dm3
C92: 公石 | D92: hl | E92: 10
C93: 亩英尺 | E93: =1/1233.4818375 -> 0.0008107131938
C94: 英制加仑 | D94: uk.gal | E94: 219.9691573
C95: 美制加仑 | D95: us.gal | E95: 264.1720524
C96: 英制液体盎司 | D96: uk.oz | E96: 35198.87364
C97: 美制液体盎司 | D97: us.oz | E97: 34164.67373
A98: 速率或速度 | B98: m/s | C98: 米每秒 | D98: m/s | E98: 1
C99: （长度）每（时间） | D99: */* | E99: k长度/k时间 | F99: 基本单位计算 | H99: mm/s
C100: 马赫 | D100: mach | E100: =1/340.3 -> 0.002938583603
C101: 光速 | D101: c | E101: =1/299792458 -> 3.335640952e-09
A102: 加速度 | B102: m/s2 | C102: 米每平方秒 | D102: m/s2 | E102: 1
C103: （长度）每平方（时间） | D103: */*2 | E103: k长度/k时间2 | F103: 基本单位计算
C104: 伽 | D104: gal | E104: 100 | F104: 等于1cm/s2
C105: 重力加速度g | D105: g | E105: =1/9.80665 -> 0.1019716213
A106: 密度 | B106: kg/m3 | C106: 千克每立方米 | D106: kg/m3 | E106: 1
C107: （质量）每（体积） | D107: */* | E107: k质量/k体积 | F107: 基本单位计算
A108: 力或重力 | B108: kg·m/s2 | C108: 牛顿 | D108: N | E108: 1 | F108: 可加前缀k；等于1/9.80665kgf
C109: （质量）力 | D109: *f | E109: k质量/9.80665 | F109: 基本单位计算
C110: 达因 | D110: dyn | E110: 100000
A111: 压强或应力 | B111: kg/s2·m | C111: 帕斯卡 | D111: Pa | E111: 1 | F111: 可加前缀k,M；等于1N/m3 | G111: kPa,MPa
C112: （力）每（面积） | D112: */* | E112: k力/k面积 | F112: 基本单位计算
C113: 百帕 | E113: 0.01
C114: 巴 | D114: bar | E114: 1e-05 | F114: 可加前缀m
C115: 标准大气压 | E115: =1/101080 -> 9.893153937e-06
C116: 毫米水柱 | D116: mmH2O | E116: 0.101972
C117: 毫米汞柱 | D117: mmHg | E117: =1/133.3223684 -> 0.007500616828
C118: 英寸汞柱 | D118: inHg | E118: =1/3386.3881579 -> 0.0002952998751
A119: 电势或电压或电动势 | B119: kg·m2/A·s3 | C119: 伏特 | D119: V | E119: 1 | F119: 可加前缀μ,m,k；等于1J/C | G119: mV,kV
A120: 功率或辐射通量 | B120: kg·m2/s3 | C120: 瓦特 | D120: W | E120: 1 | F120: 可加前缀m,k,M,G；等于1J/s；等于1N·m/s | G120: kW，MW，GW
C121: （能量）每（时间） | D121: */* | E121: k能量/k时间 | F121: 基本单位计算
C122: （力）（长度）每（时间） | D122: *·*/* | E122: k力·k长度/k时间 | F122: 基本单位计算
C123: 米制马力 | D123: ps | E123: =1/735.49875 -> 0.001359621617
C124: 英制马力 | D124: hp | E124: =1/745.699872 -> 0.001341022089
C125: 乏 | D125: Var | E125: 1 | F125: 可加前缀m,k | G125: kVar
C126: 伏安 | D126: VA | E126: 1 | F126: 可加前缀m,k | G126: kVA
C127: 分贝毫瓦 | D127: dBm | E127: dBm=10×lg(mW) | F127: 换算方法不同；也写作dBmW
A128: 能量或功或热量 | B128: kg·m2/s2 | C128: 焦耳 | D128: J | E128: 1 | F128: 可加前缀k,M,G；等于1W·s；等于1N·m | G128: kJ，MJ，GJ
C129: (功率)(时间) | D129: *·* | E129: k功率·k时间 | F129: 基本单位计算 | H129: kWh，kVarh，kVAh，Wh，MWh，GWh | I129: kWhc，kWhh
C130: (力)(长度) | D130: *·* | E130: k力·k长度 | F130: 基本单位计算
C131: 度 | E131: =1/3600000 -> 2.777777778e-07 | F131: 等于1kWh
C132: 卡 | D132: cal | E132: 0.2389 | F132: 可加前缀k
C133: 英热单位 | D133: btu | E133: =1/1055.0558526 -> 0.0009478171203
C134: 折千克标煤 | D134: kgce | E134: =1/29306000 -> 3.412270525e-08
C135: 折吨标煤 | D135: tce | E135: =1/29306000000 -> 3.412270525e-11
C136: 折千克二氧化碳 | D136: kgCO2 | E136: =E135*2560 -> 8.735412544e-08
C137: 折吨二氧化碳 | D137: tCO2 | E137: =E135*2560/1000 -> 8.735412544e-11
C138: 折公顷森林面积 | D138: ha | E138: =E135*1.2032 -> 4.105643895e-11
A139: 电阻 | B139: kg·m2/A2·s3 | C139: 欧姆 | D139: Ω | E139: 1 | F139: 可加前缀k,M；等于1V/A | G139: kΩ,MΩ
A140: 电容量 | B140: A2·s4/kg·m2 | C140: 法拉 | D140: F | E140: 1 | F140: 可加前缀p,n,μ,m；等于1C/V | G140: pF
A141: 光通量 | B141: cd·1(Sr) | C141: 流明 | D141: lm | E141: 1 | F141: 等于1cd·Sr
A142: 光照度 | B142: cd·1(Sr)/m2 | C142: 勒克斯 | D142: lux | E142: 1 | F142: 等于1cd·Sr/m2
A143: 频率 | B143: 1/s | C143: 赫兹 | D143: Hz | E143: 1 | F143: 可加前缀k,M,G；等于1/s | G143: kHz,MHz,GHz
C144: （数量）每（时间） | D144: */* | E144: k数量/k时间 | F144: 基本单位计算；具体情况写法不同 | H144: 次/h，次/天，rpm | I144: （次/h），（次/天），（rpm）
A145: 电荷量或电量 | B145: A·s | C145: 库伦 | D145: C | E145: 1 | F145: 可加前缀k,M,G；等于1A·s
C146: （电流）（时间） | D146: *·* | E146: k电流·k时间 | F146: 基本单位计算 | H146: mAh，Ah
C147: CGS静电系电量单位 | D147: esu | E147: =3*10^9 -> 3000000000
C148: CGS电磁系电量单位 | D148: emu | E148: 0.1
C149: 单个电子带电量 | D149: e | E149: =1/(1.6021892*10^-19) -> 6.241460122e+18
A150: 电导 | B150: A2·s3/kg·m2 | C150: 西门子 | D150: S | E150: 1 | F150: 可加前缀μ,m；等于1A/V；等于1/Ω
A151: 磁通量密度或磁感应强度 | B151: kg/A·s2 | C151: 特斯拉 | D151: T | E151: 1 | F151: 可加前缀μ,m；等于1N/A·m
C152: 高斯 | D152: Gs | E152: 10000
A153: 磁通量 | B153: kg·m2/A·s2 | C153: 韦伯 | D153: Wb | E153: 1 | F153: 等于1T·m2
C154: 麦克斯韦 | D154: Mx | E154: =10^8 -> 100000000
A155: 电感 | B155: kg·m2/A2·s2 | C155: 亨利 | D155: H | E155: 1 | F155: 可加前缀μ,m；等于1V·s/A
A156: 放射性活度 | B156: 1/s | C156: 贝克勒尔 | D156: Bq | E156: 1 | F156: 等于1/s
A157: 吸收剂量 | B157: m2/s2 | C157: 戈瑞 | D157: Gy | E157: 1 | F157: 可加前缀k,M；等于1J/kg
C158: 拉德 | D158: rad | E158: 100 | F158: 可加前缀k,M
A159: 剂量当量 | B159: m2/s2 | C159: 希沃特 | D159: Sv | E159: 1 | F159: 可加前缀μ,m；等于1J/kg
A160: 催化活性 | B160: mol/s | C160: 卡塔尔 | D160: kat | E160: 1 | F160: 可加前缀μ,m；等于1mol/s
C161: 活力单位 | D161: IU | E161: 60
A162: 角速度 | B162: 1(rad)/s | C162: 弧度每秒 | D162: rad/s | E162: 1
C163: （平面角）每（时间） | D163: */* | E163: k平面角/k时间 | F163: 基本单位计算 | H163: °/s
A164: 力矩 | B164: kg·m2/s2 | C164: 牛米 | D164: Nm | E164: 1
C165: 力·长度 | D165: *·* | E165: k力·k长度 | F165: 基本单位计算
A166: 波数 | B166: 1/m | C166: 每米 | D166: 1/m
C167: 每（长度） | D167: 1/* | E167: 1/k长度 | F167: 基本单位计算
A168: 比体积 | B168: m3/kg | C168: 立方米每千克 | D168: m3/kg | E168: 1
C169: （体积）每（质量） | D169: */* | E169: k体积/k质量 | F169: 基本单位计算
A170: 物质浓度 | B170: mol/m3 | C170: 摩每立方米 | D170: mol/m3 | E170: 1
C171: （物质的量）每（体积） | D171: */* | E171: k物质的量/k体积 | F171: 基本单位计算 | H171: mol/L
A172: 摩尔体积 | B172: m3/mol | C172: 立方米每摩 | D172: m3/mol | E172: 1
C173: （体积）每（物质的量） | D173: */* | E173: k体积/k物质的量 | F173: 基本单位计算
A174: 熵 | B174: kg·m2/s2·K | C174: 焦每开 | D174: J/K | E174: 1
C175: (能量）每（温度） | D175: */* | E175: k能量/k温度 | F175: 基本单位计算；换算方法不同
A176: 摩尔热容量或摩尔熵 | B176: kg·m2/s2·mol·K | C176: 焦每摩开 | D176: J/(molK) | E176: 1
C177: （能量）每（物质的量）（温度） | D177: */（*·*） | E177: k能量/(k物质的量·k温度） | F177: 基本单位计算；换算方法不同
A178: 比热容量或比熵 | B178: m2/s2·K | C178: 焦每千克开 | D178: J/(kgK) | E178: 1
C179: （能量）每（质量）（温度） | D179: */（*·*） | E179: k能量/(k质量·k温度） | F179: 基本单位计算；换算方法不同
A180: 摩尔能 | B180: kg·m2/s2·mol | C180: 焦每摩 | D180: J/mol | E180: 1
C181: （能量）每（物质的量） | D181: */* | E181: k能量/k物质的量 | F181: 基本单位计算
A182: 比能 | B182: m2/s2 | C182: 焦每千克 | D182: J/kg | E182: 1
C183: （能量）每（质量） | D183: */* | E183: k能量/k质量 | F183: 基本单位计算
A184: 能量密度 | B184: kg/m·s2 | C184: 焦每立方米 | D184: J/m3 | E184: 1
C185: （能量）每（体积） | D185: */* | E185: k能量/k体积 | F185: 基本单位计算
A186: 表面张力 | B186: kg/s2 | C186: 牛每米 | D186: N/m | E186: 1
C187: （力）每（长度） | D187: */* | E187: k力/k长度 | F187: 基本单位计算
A188: 热通量密度或辐射照度或功率密度 | B188: kg/s3 | C188: 瓦每平方米 | D188: W/m2 | E188: 1
C189: （功率）每（面积） | D189: */* | E189: k功率/k面积 | F189: 基本单位计算 | H189: kW/m2
A190: 导热系数 | B190: kg·m/s3·K | C190: 瓦每开米 | D190: W/(Km) | E190: 1
C191: （功率）每（温度）（长度） | D191: */（*·*） | E191: k功率/(k温度·k长度） | F191: 基本单位计算；换算方法不同
A192: 动粘度 | B192: m2/s | C192: 平方米每秒 | D192: m2/s | E192: 1
C193: （面积）每（时间） | D193: */* | E193: k面积/k时间 | F193: 基本单位计算
A194: 粘度 | B194: kg/m·s | C194: 帕秒 | D194: Pa·s | E194: 1
C195: （压强）（时间） | D195: *·* | E195: k压强·k时间 | F195: 基本单位计算
A196: 电荷密度 | B196: A·s/m3 | C196: 库每立方米 | D196: C/m3 | E196: 1
C197: （电荷量）每（体积） | D197: */* | E197: k电荷量/k体积 | F197: 基本单位计算
A198: 电流密度 | B198: A/m2 | C198: 安每平方米 | D198: A/m2 | E198: 1
C199: （电流）每（面积） | D199: */* | E199: k电流/k面积 | F199: 基本单位计算
A200: 电导率 | B200: A2·s3/kg·m3 | C200: 西每米 | D200: S/m | E200: 1
C201: （电导）每（长度） | D201: */* | E201: k电导/k长度 | F201: 基本单位计算
... 95 more rows

Sheet 前缀
B1: 前缀 | C1: 符号 | D1: 名称 | E1: 代表数字 | F1: 换算系数k
C2: p | D2: 皮 | E2: =10^-12 -> 1e-12 | F2: =1/E2 -> 1000000000000
C3: n | D3: 纳 | E3: =10^-9 -> 1e-09 | F3: =1/E3 -> 1000000000
C4: μ | D4: 微 | E4: =10^-6 -> 1e-06 | F4: 1000000
C5: m | D5: 毫 | E5: =10^-3 -> 0.001 | F5: 1000
C6: c | D6: 厘 | E6: =10^-2 -> 0.01 | F6: 100
C7: d | D7: 分 | E7: =10^-1 -> 0.1 | F7: 10
C8: k | D8: 千 | E8: =10^3 -> 1000 | F8: 0.001
C9: M | D9: 兆 | E9: =10^6 -> 1000000 | F9: 1e-06
C10: G | D10: 千兆 | E10: =10^9 -> 1000000000 | F10: 1e-09
C11: T | D11: 太 | E11: =10^12 -> 1000000000000 | F11: 1e-12
C12: P | D12: 拍 | E12: =10^15 -> 1000000000000000 | F12: 1e-15
C13: E | D13: 艾 | E13: =10^18 -> 1e+18 | F13: 1e-18
B15: 除计算机存储容量及其相关，10^3替换为2^10

Sheet 能耗折算
E2: 折标煤系数 | G2: 折CO2系数 | I2: 折森林面积系数 | K2: 备注
B3: code | C3: name | D3: 单位 | E3: 系数 | F3: 单位 | G3: 系数 | H3: 单位 | I3: 系数 | J3: 单位
B4: 1 | C4: 电 | D4: kWh | E4: =0.326/1000 -> 0.000326 | F4: tce/kWh | G4: =E4*$G$15 -> 0.83456 | H4: kgCO2/kWh | I4: =G4*$I$16 -> 0.0003922432 | J4: ha/kWh | K4: CO2沿用数据字典原系数
B5: 2 | C5: 供冷 | D5: kWh | E5: =0.0815/1000 -> 8.15e-05 | F5: tce/kWh | G5: =E5*$G$15 -> 0.20864 | H5: kgCO2/kWh | I5: =G5*$I$16 -> 9.80608e-05 | J5: ha/kWh
B6: 3 | C6: 供热 | D6: kWh | E6: =0.1228/1000 -> 0.0001228 | F6: tce/kWh | G6: =E6*$G$15 -> 0.314368 | H6: kgCO2/kWh | I6: =G6*$I$16 -> 0.00014775296 | J6: ha/kWh
B7: 4 | C7: 自来水 | D7: m3 | E7: =0.0857/1000 -> 8.57e-05 | F7: tce/m3 | G7: =E7*$G$15 -> 0.219392 | H7: kgCO2/m3 | I7: =G7*$I$16 -> 0.00010311424 | J7: ha/m3
B8: 5 | C8: 燃气 | D8: m3 | E8: =1.33/1000 -> 0.00133 | F8: tce/m3 | G8: =E8*$G$15 -> 3.4048 | H8: kgCO2/m3 | I8: =G8*$I$16 -> 0.001600256 | J8: ha/m3
B9: 6 | C9: 燃油 | D9: L | E9: =1.224/1000 -> 0.001224 | F9: tce/L | G9: =E9*$G$15 -> 3.13344 | H9: kgCO2/L | I9: =G9*$I$16 -> 0.0014727168 | J9: ha/L | K9: CO2系数：IPCC
B10: 7 | C10: 蒸汽 | D10: ton | E10: =0.1286 -> 0.1286 | F10: tce/t | G10: =E10*$G$15 -> 329.216 | H10: kgCO2/t | I10: =G10*$I$16 -> 0.15473152 | J10: ha/t
B11: 8 | C11: 热水 | D11: m3 | E11: =E7 -> 8.57e-05 | F11: tce/m3 | G11: =E11*$G$15 -> 0.219392 | H11: kgCO2/m3 | I11: =G11*$I$16 -> 0.00010311424 | J11: ha/m3
B12: 9 | C12: 汽油 | D12: L | E12: =1.067/1000 -> 0.001067 | F12: tce/L | G12: =E12*$G$15 -> 2.73152 | H12: kgCO2/L | I12: =G12*$I$16 -> 0.0012838144 | J12: ha/L | K12: CO2：EDMC建议排放系数
B13: 10 | C13: 原煤 | D13: ton | E13: 0.7143 | F13: tce/t | G13: =E13*$G$15 -> 1828.608 | H13: kgCO2/t | I13: =G13*$I$16 -> 0.85944576 | J13: ha/t | K13: CO2系数：IPCC
B14: 11 | C14: 焦炭 | D14: ton | E14: 0.9714 | F14: tce/t | G14: =E14*$G$15 -> 2486.784 | H14: kgCO2/t | I14: =G14*$I$16 -> 1.16878848 | J14: ha/t | K14: CO2系数：IPCC
B15: 12 | C15: 标煤 | D15: tce | E15: 1 | F15: tce/tce | G15: =2.56*1000 -> 2560 | H15: kgCO2/tce | I15: =G15*$I$16 -> 1.2032 | J15: ha/tce | K15: CO2系数：IPCC
B16: 13 | C16: CO2排放 | D16: kgCO2 | E16: =1/G15 -> 0.000390625 | F16: tce/kgCO2 | G16: 1 | H16: kgCO2/kgCO2 | I16: 0.00047 | J16: ha/kgCO2 | K16: 森林系数沿用数据字典原系数
B17: 14 | C17: 森林面积 | D17: ha | E17: =1/I16*E16 -> 0.8311170213 | F17: tce/ha | G17: =1/I16 -> 2127.659574 | H17: kgCO2/ha | I17: 1 | J17: ha/ha | K17: 年
